bitfinex/quotes_BTCUSD_20241027
["timestamp","ask_amount","ask_price","bid_price","bid_amount"]
[1730062605612,0.16299466,67791.0,67790.0,0.001822]
[1730062605820,0.16299466,67791.0,67790.0,0.03782411]
[1730062606022,0.16299466,67791.0,67790.0,0.001822]
[1730062611794,0.16298863,67791.0,67790.0,0.001822]
[1730062620452,0.31349244,67791.0,67790.0,0.001822]
[1730062621270,0.31349212,67791.0,67790.0,0.001822]
[1730062624959,0.29965981,67791.0,67790.0,0.001822]
[1730062625190,0.31348838,67791.0,67790.0,0.001822]
[1730062628138,0.3308811,67791.0,67790.0,0.001822]
[1730062628543,0.31705253,67791.0,67790.0,0.001822]
[1730062628738,0.33087935,67791.0,67790.0,0.001822]
[1730062632259,0.33087847,67791.0,67790.0,0.001822]
[1730062636081,0.33087648,67791.0,67790.0,0.001822]
[1730062643306,0.51267648,67791.0,67790.0,0.001822]
[1730062643541,0.61267648,67791.0,67790.0,0.001822]
[1730062645623,0.72316921,67791.0,67790.0,0.001822]
[1730062646100,0.72316957,67791.0,67790.0,0.001822]
[1730062646322,0.72816957,67791.0,67790.0,0.001822]
[1730062646579,0.73314982,67791.0,67790.0,0.001822]
[1730062646992,0.72814982,67791.0,67790.0,0.001822]
[1730062648054,0.61767648,67791.0,67790.0,0.001822]
[1730062648280,0.72814982,67791.0,67790.0,0.001822]
[1730062648506,0.72813262,67791.0,67790.0,0.001822]
[1730062648988,0.61767648,67791.0,67790.0,0.001822]
[1730062649204,0.72813262,67791.0,67790.0,0.001822]
[1730062649429,0.61767648,67791.0,67790.0,0.001822]
[1730062650364,0.73313262,67791.0,67790.0,0.001822]
[1730062650596,0.73308983,67791.0,67790.0,0.001822]
[1730062651015,0.62267648,67791.0,67790.0,0.001822]
[1730062651248,0.73308983,67791.0,67790.0,0.001822]
[1730062651471,0.62267648,67791.0,67790.0,0.001822]
[1730062651888,0.73308983,67791.0,67790.0,0.001822]
[1730062652108,0.88359364,67791.0,67790.0,0.001822]
[1730062652340,0.77318029,67791.0,67790.0,0.001822]
[1730062652845,0.71099039,67791.0,67790.0,0.001822]
[1730062653189,0.62267648,67791.0,67790.0,0.001822]
[1730062653401,0.71099008,67791.0,67790.0,0.001822]
[1730062653571,0.62267648,67791.0,67790.0,0.001822]
[1730062654578,0.71099008,67791.0,67790.0,0.001822]
[1730062654795,0.62267648,67791.0,67790.0,0.001822]
[1730062655005,0.62265125,67791.0,67790.0,0.001822]
[1730062655410,0.71096485,67791.0,67790.0,0.001822]
[1730062655616,0.62265125,67791.0,67790.0,0.001822]
[1730062656999,0.68098509,67791.0,67790.0,0.001822]
[1730062659322,0.74720427,67791.0,67790.0,0.001822]
[1730062659709,0.68098509,67791.0,67790.0,0.001822]
[1730062660198,0.74720359,67791.0,67790.0,0.001822]
[1730062660404,0.68098509,67791.0,67790.0,0.001822]
[1730062661396,0.62265125,67791.0,67790.0,0.001822]
[1730062661572,0.68887212,67791.0,67790.0,0.001822]
[1730062662047,0.68887214,67791.0,67790.0,0.001822]
[1730062662649,0.62265295,67791.0,67790.0,0.001822]
[1730062665048,0.688876,67791.0,67790.0,0.001822]
[1730062665546,0.62265295,67791.0,67790.0,0.001822]
[1730062665785,0.62265687,67791.0,67790.0,0.001822]
[1730062666239,0.68888297,67791.0,67790.0,0.001822]
[1730062666468,0.62265687,67791.0,67790.0,0.001822]
[1730062667946,0.68888403,67791.0,67790.0,0.001822]
[1730062668150,0.60608403,67791.0,67790.0,0.001822]
[1730062668314,0.53985687,67791.0,67790.0,0.001822]
[1730062668528,0.52605253,67791.0,67790.0,0.001822]
[1730062668780,0.59227969,67791.0,67790.0,0.001822]
[1730062673623,0.52605253,67791.0,67790.0,0.001822]
[1730062674450,0.59229821,67791.0,67790.0,0.001822]
[1730062674650,0.52605253,67791.0,67790.0,0.001822]
[1730062676225,0.61435351,67791.0,67790.0,0.001822]
[1730062677250,0.61439816,67791.0,67790.0,0.001822]
[1730062677590,0.52605253,67791.0,67790.0,0.001822]
[1730062678140,0.63648457,67791.0,67790.0,0.001822]
[1730062678911,0.63848457,67791.0,67790.0,0.001822]
[1730062680780,0.52605253,67791.0,67790.0,0.001822]
[1730062680987,0.63653404,67791.0,67790.0,0.001822]
[1730062681213,0.52605253,67791.0,67790.0,0.001822]
[1730062682528,0.63654508,67791.0,67790.0,0.001822]
[1730062683499,0.52605253,67791.0,67790.0,0.001822]
[1730062703979,0.43205253,67791.0,67790.0,0.001822]
[1730062707051,0.52892722,67791.0,67790.0,0.001822]
[1730062707255,0.52575253,67791.0,67790.0,0.001822]
[1730062707479,0.6201212,67791.0,67790.0,0.001822]
[1730062708575,0.414523,67786.0,67785.0,0.00217505]
[1730062708787,0.84909548,67786.0,67785.0,0.00217505]
[1730062709877,0.99959929,67786.0,67785.0,0.00217505]
[1730062711401,1.13218836,67786.0,67785.0,0.00217505]
[1730062712490,0.99959929,67786.0,67785.0,0.00217505]
[1730062712970,1.13218836,67786.0,67785.0,0.00217505]
[1730062713192,0.99959929,67786.0,67785.0,0.00217505]
[1730062715966,0.84909548,67786.0,67785.0,0.00217505]
[1730062718175,0.84909548,67786.0,67785.0,0.00299705]
[1730062726227,0.85109548,67786.0,67785.0,0.00299705]
[1730062727113,0.84909548,67786.0,67785.0,0.00299705]
[1730062729670,0.95949412,67786.0,67785.0,0.00299705]
[1730062730044,1.10999793,67786.0,67785.0,0.00299705]
[1730062730270,0.95949412,67786.0,67785.0,0.00299705]
[1730062731733,0.84909548,67786.0,67785.0,0.00299705]
[1730062735442,0.75672681,67786.0,67785.0,0.00299705]
[1730062735666,0.95948903,67786.0,67785.0,0.00299705]
[1730062736634,0.96148984,67786.0,67785.0,0.00299705]
[1730062736864,1.06941722,67786.0,67785.0,0.00299705]
[1730062737081,0.95902286,67786.0,67785.0,0.00299705]
[1730062737300,1.06941398,67786.0,67785.0,0.00299705]
[1730062737525,0.9614866,67786.0,67785.0,0.00299705]
[1730062737993,0.9594866,67786.0,67785.0,0.00299705]
[1730062738354,0.84909548,67786.0,67785.0,0.00299705]
[1730062739423,0.85109548,67786.0,67785.0,0.00299705]
[1730062739563,0.84909548,67786.0,67785.0,0.00299705]
[1730062739968,0.95948486,67786.0,67785.0,0.00299705]
[1730062741102,0.95948453,67786.0,67785.0,0.00299705]
[1730062741325,0.84909548,67786.0,67785.0,0.00299705]
[1730062741596,0.95948268,67786.0,67785.0,0.00299705]
[1730062741832,1.10998649,67786.0,67785.0,0.00299705]
[1730062742735,1.10998551,67786.0,67785.0,0.00299705]
[1730062743382,0.99959929,67786.0,67785.0,0.00299705]
[1730062743803,1.10998595,67786.0,67785.0,0.00299705]
[1730062745630,0.99959929,67786.0,67785.0,0.00299705]
[1730062745848,1.10998657,67786.0,67785.0,0.00299705]
[1730062746812,1.10998972,67786.0,67785.0,0.00299705]
[1730062747246,0.95948591,67786.0,67785.0,0.00299705]
[1730062749800,0.84909548,67786.0,67785.0,0.00299705]
[1730062750463,0.85109548,67786.0,67785.0,0.00299705]
[1730062752548,0.84909548,67786.0,67785.0,0.00299705]
[1730062754100,0.98163946,67786.0,67785.0,0.00299705]
[1730062754778,0.84909548,67786.0,67785.0,0.00299705]
[1730062754988,0.98163946,67786.0,67785.0,0.00299705]
[1730062755206,0.88927079,67786.0,67785.0,0.00299705]
[1730062755445,0.75672681,67786.0,67785.0,0.00299705]
[1730062756345,0.88945342,67786.0,67785.0,0.00299705]
[1730062762487,0.75672681,67786.0,67785.0,0.00299705]
[1730062762708,0.88945342,67786.0,67785.0,0.00299705]
[1730062763610,0.79575342,67786.0,67785.0,0.00299705]
[1730062764321,0.66302681,67786.0,67785.0,0.00299705]
[1730062764789,0.54575342,67786.0,67785.0,0.00299705]
[1730062766546,0.41302681,67786.0,67785.0,0.00299705]
[1730062766755,0.54575342,67786.0,67785.0,0.00299705]
[1730062767313,0.41302681,67786.0,67785.0,0.00299705]
[1730062767418,0.54575342,67786.0,67785.0,0.00299705]
[1730062768063,0.41302681,67786.0,67785.0,0.00299705]
[1730062778376,0.41467081,67786.0,67785.0,0.00299705]
[1730062795844,0.40967081,67786.0,67785.0,0.17779705]
[1730062796047,0.41467081,67786.0,67785.0,0.21603963]
[1730062796261,0.50317182,67786.0,67785.0,0.21603963]
[1730062797528,0.41467081,67786.0,67785.0,0.21603963]
[1730062798429,0.48102937,67786.0,67785.0,0.21603963]
[1730062802256,0.44889262,67786.0,67785.0,0.21603963]
[1730062802463,0.40467081,67786.0,67785.0,0.21603963]
[1730062803519,0.29967081,67786.0,67785.0,0.21603963]
[1730062804344,0.149167,67786.0,67785.0,0.21603963]
[1730062805367,0.001644,67786.0,67785.0,0.3084083]
[1730062806443,0.001644,67786.0,67785.0,0.21603963]
[1730062806659,0.149167,67786.0,67785.0,0.21603963]
[1730062811645,0.16670589,67786.0,67785.0,0.21603963]
[1730062814712,0.149167,67786.0,67785.0,0.21603963]
[1730062831312,0.149167,67786.0,67785.0,0.17779705]
[1730062831728,0.149167,67786.0,67785.0,0.20869387]
[1730062838022,0.001644,67786.0,67785.0,0.20869387]
[1730062838233,0.149167,67786.0,67785.0,0.20869387]
[1730062854334,0.149167,67786.0,67785.0,0.03389387]
[1730062893849,0.49203948,67786.0,67785.0,0.03389387]
[1730062894068,0.6297947,67786.0,67785.0,0.03389387]
[1730062894278,0.58553948,67786.0,67785.0,0.00299705]
[1730062894492,0.62977028,67786.0,67785.0,0.00299705]
[1730062894782,0.49317081,67786.0,67785.0,0.00299705]
[1730062895006,0.67208126,67786.0,67785.0,0.00299705]
[1730062895452,0.58357081,67786.0,67785.0,0.00299705]
[1730062896353,0.64986751,67786.0,67785.0,0.00299705]
[1730062897434,0.58357081,67786.0,67785.0,0.00299705]
[1730062898528,0.62774288,67786.0,67785.0,0.00299705]
[1730062898740,0.62774175,67786.0,67785.0,0.00299705]
[1730062901421,0.58357081,67786.0,67785.0,0.00299705]
[1730062906203,0.50817081,67786.0,67785.0,0.00299705]
[1730062906435,0.60053948,67786.0,67785.0,0.00299705]
[1730062909048,0.50817081,67786.0,67785.0,0.00299705]
[1730062909544,0.40467081,67786.0,67785.0,0.00299705]
[1730062917224,0.49703948,67786.0,67785.0,0.00299705]
[1730062919172,0.40467081,67786.0,67785.0,0.00299705]
[1730062919611,0.58853948,67786.0,67785.0,0.00299705]
[1730062919845,0.67573948,67786.0,67785.0,0.00299705]
[1730062920518,0.58337081,67786.0,67785.0,0.00299705]
[1730062924671,0.58537081,67786.0,67785.0,0.00299705]
[1730062929261,0.65152223,67786.0,67785.0,0.00299705]
[1730062930839,0.65151934,67786.0,67785.0,0.00299705]
[1730062933526,0.58537081,67786.0,67785.0,0.00299705]
[1730062935543,0.58337081,67786.0,67785.0,0.00299705]
[1730062936377,0.67159409,67786.0,67785.0,0.00299705]
[1730062937221,0.67359409,67786.0,67785.0,0.00299705]
[1730062937432,0.67159409,67786.0,67785.0,0.00299705]
[1730062939439,0.58337081,67786.0,67785.0,0.00299705]
[1730062941333,0.6610475,67786.0,67785.0,0.00299705]
[1730062942405,0.58337081,67786.0,67785.0,0.00299705]
[1730062943248,0.69364991,67786.0,67785.0,0.00299705]
[1730062943468,0.58537081,67786.0,67785.0,0.00299705]
[1730062943695,0.58337081,67786.0,67785.0,0.00299705]
[1730062943873,0.58537081,67786.0,67785.0,0.00299705]
[1730062944800,0.58337081,67786.0,67785.0,0.00299705]
[1730062948721,0.50617081,67786.0,67785.0,0.00299705]
[1730062950600,0.59853948,67786.0,67785.0,0.00299705]
[1730062953504,0.60053948,67786.0,67785.0,0.00299705]
[1730062953928,0.59853948,67786.0,67785.0,0.00299705]
[1730062957247,0.62164839,67786.0,67785.0,0.00299705]
[1730062958114,0.7721522,67786.0,67785.0,0.00299705]
[1730062958375,0.88248051,67786.0,67785.0,0.00299705]
[1730062959431,0.7319767,67786.0,67785.0,0.00299705]
[1730062960321,0.62164839,67786.0,67785.0,0.00299705]
[1730062976119,0.59853948,67786.0,67785.0,0.00299705]
[1730062978886,0.50617081,67786.0,67785.0,0.00299705]
[1730062980506,0.264525,67785.0,67784.0,0.00059933]
[1730062980754,0.41502881,67785.0,67784.0,0.00059933]
[1730062982357,0.41302881,67785.0,67784.0,0.00059933]
[1730062989115,0.43010402,67785.0,67784.0,0.00059933]
[1730062989529,0.52247269,67785.0,67784.0,0.00059933]
[1730062990779,0.43010402,67785.0,67784.0,0.00059933]
[1730062997027,0.58060783,67785.0,67784.0,0.00059933]
[1730062998285,0.43010402,67785.0,67784.0,0.00059933]
[1730063001921,0.54065241,67785.0,67784.0,0.00059933]
[1730063002613,0.43010402,67785.0,67784.0,0.00059933]
[1730063002832,0.54065241,67785.0,67784.0,0.00059933]
[1730063003283,0.53564016,67785.0,67784.0,0.00059933]
[1730063003705,0.42510402,67785.0,67784.0,0.00059933]
[1730063004262,0.53564016,67785.0,67784.0,0.00059933]
[1730063004448,0.42510402,67785.0,67784.0,0.00059933]
[1730063012592,0.42510402,67785.0,67776.0,0.0761]
[1730063012593,0.147542,67777.0,67776.0,0.07542507]
[1730063012809,0.49041448,67777.0,67776.0,0.07542507]
[1730063013019,0.49041448,67777.0,67776.0,0.11291619]
[1730063013230,0.49041448,67777.0,67776.0,0.07542507]
[1730063017312,0.39804581,67777.0,67776.0,0.07542507]
[1730063019171,0.49041448,67777.0,67776.0,0.07542507]
[1730063020519,0.50788562,67777.0,67776.0,0.07542507]
[1730063020737,0.147549,67774.0,67773.0,0.000822]
[1730063020992,0.29805281,67774.0,67773.0,0.000822]
[1730063023064,0.39042148,67774.0,67773.0,0.000822]
[1730063023277,0.29805281,67774.0,67773.0,0.000822]
[1730063024480,0.59279015,67774.0,67773.0,0.000822]
[1730063024735,0.93123957,67774.0,67773.0,0.000822]
[1730063024961,0.50042148,67774.0,67773.0,0.000822]
[1730063025198,0.5888709,67774.0,67773.0,0.000822]
[1730063025678,0.40805281,67774.0,67773.0,0.000822]
[1730063025929,0.50042148,67774.0,67773.0,0.000822]
[1730063026634,0.56670308,67774.0,67773.0,0.000822]
[1730063027171,0.40805281,67774.0,67773.0,0.000822]
[1730063027417,0.50042148,67774.0,67773.0,0.000822]
[1730063027629,0.47432293,67774.0,67773.0,0.000822]
[1730063028540,0.47432293,67774.0,67773.0,0.097922]
[1730063028790,0.40305281,67774.0,67773.0,0.097922]
[1730063030641,0.44721991,67774.0,67773.0,0.097922]
[1730063030886,0.45221991,67774.0,67773.0,0.097922]
[1730063033374,0.45221991,67774.0,67773.0,0.000822]
[1730063035835,0.40805281,67774.0,67773.0,0.000822]
[1730063049271,0.40805281,67774.0,67773.0,0.170222]
[1730063049272,0.29805281,67774.0,67773.0,0.170222]
[1730063050135,0.29805281,67774.0,67773.0,0.20440343]
[1730063050583,0.39805281,67774.0,67773.0,0.20440343]
[1730063052701,0.39805281,67774.0,67773.0,0.170222]
[1730063063721,0.39805281,67774.0,67773.0,0.20568204]
[1730063063972,0.29805281,67774.0,67773.0,0.29805071]
[1730063065319,0.29805281,67774.0,67773.0,0.20568204]
[1730063094881,0.29805281,67774.0,67773.0,0.29805071]
[1730063095511,0.29805281,67774.0,67773.0,0.20568204]
[1730063097381,0.147549,67774.0,67773.0,0.21068204]
[1730063097583,0.147549,67774.0,67773.0,0.30305071]
[1730063097915,0.295095,67775.0,67774.0,0.1745]
[1730063097916,0.147547,67775.0,67774.0,0.1745]
[1730063098179,0.147547,67775.0,67774.0,0.22373428]
[1730063098400,0.147547,67775.0,67774.0,0.21711876]
[1730063098613,0.147547,67775.0,67774.0,0.04261876]
[1730063098825,0.147547,67775.0,67774.0,0.21711876]
[1730063099234,0.001644,67776.0,67775.0,0.1795]
[1730063099442,0.001644,67776.0,67775.0,0.49350685]
[1730063099649,0.001644,67776.0,67775.0,0.64374802]
[1730063099859,0.001644,67776.0,67775.0,0.53316232]
[1730063100314,0.001644,67776.0,67775.0,0.52816232]
[1730063100541,0.001644,67776.0,67775.0,0.70666613]
[1730063100752,0.001644,67776.0,67775.0,0.94766224]
[1730063100959,0.001644,67776.0,67775.0,0.92968681]
[1730063101589,0.001644,67776.0,67775.0,0.83340664]
[1730063102045,0.001644,67776.0,67775.0,0.7006907]
[1730063102264,0.001644,67785.0,67784.0,0.51876434]
[1730063102481,0.001644,67785.0,67784.0,0.68227395]
[1730063102686,0.001644,67785.0,67784.0,0.67187395]
[1730063103122,0.001644,67785.0,67784.0,0.69147628]
[1730063103539,0.001644,67785.0,67784.0,0.80197058]
[1730063103770,0.001644,67785.0,67784.0,0.77981782]
[1730063104635,0.001644,67785.0,67784.0,0.75770163]
[1730063105072,0.001644,67785.0,67784.0,0.77981782]
[1730063105727,0.001644,67785.0,67784.0,0.75766949]
[1730063106596,0.001644,67785.0,67784.0,0.52796667]
[1730063107440,0.001644,67785.0,67784.0,0.435598]
[1730063107653,0.001644,67785.0,67784.0,0.47969535]
[1730063107865,0.001644,67785.0,67784.0,0.57206402]
[1730063108509,0.001644,67785.0,67784.0,0.47969535]
[1730063108714,0.001644,67785.0,67784.0,0.435598]
[1730063110062,0.001644,67785.0,67784.0,0.52796667]
[1730063111804,0.001644,67785.0,67784.0,0.52996667]
[1730063112005,0.001644,67785.0,67784.0,0.52796667]
[1730063124948,0.001644,67785.0,67784.0,0.435598]
[1730063127850,0.001644,67785.0,67784.0,0.43642]
[1730063133108,0.001644,67785.0,67784.0,0.52878867]
[1730063134304,0.001644,67786.0,67785.0,0.017]
[1730063134562,0.001644,67786.0,67785.0,0.56372572]
[1730063134811,0.001644,67786.0,67785.0,0.57890248]
[1730063135289,0.001644,67786.0,67785.0,0.53485521]
[1730063136212,0.001644,67786.0,67785.0,0.60089665]
[1730063136721,0.001644,67786.0,67785.0,0.76355898]
[1730063137190,0.001644,67786.0,67785.0,0.69751754]
[1730063138134,0.001644,67786.0,67785.0,0.7855728]
[1730063139057,0.001644,67786.0,67785.0,0.802647]
[1730063139511,0.001644,67786.0,67785.0,0.71459174]
[1730063140204,0.001644,67786.0,67785.0,0.82466081]
[1730063140653,0.001644,67786.0,67785.0,0.82507469]
[1730063141141,0.001644,67786.0,67785.0,0.71478259]
[1730063143054,0.001644,67786.0,67785.0,0.76090155]
[1730063143320,0.001644,67786.0,67785.0,0.89325207]
[1730063144039,0.001644,67786.0,67785.0,0.84713311]
[1730063144276,0.001644,67786.0,67785.0,0.71478259]
[1730063145288,0.001644,67786.0,67785.0,1.38534704]
[1730063146912,0.001644,67786.0,67785.0,1.58077085]
[1730063149426,0.001644,67790.0,67789.0,0.24488467]
[1730063149745,0.001644,67790.0,67789.0,0.85028785]
[1730063149846,0.001644,67790.0,67789.0,0.86838979]
[1730063150069,1e-08,67792.0,67791.0,0.147512]
[1730063150295,1e-08,67792.0,67791.0,0.88623929]
[1730063150519,1e-08,67792.0,67791.0,0.90433695]
[1730063154511,1e-08,67792.0,67791.0,0.77154545]
[1730063155007,1e-08,67792.0,67791.0,0.77153495]
[1730063156420,1e-08,67792.0,67791.0,0.90431792]
[1730063156884,1e-08,67792.0,67791.0,0.77153495]
[1730063163021,1e-08,67792.0,67791.0,0.77153433]
[1730063165512,1e-08,67792.0,67791.0,0.77235633]
[1730063167745,1e-08,67792.0,67791.0,0.77236275]
[1730063170777,1e-08,67792.0,67791.0,0.95006275]
[1730063175768,1e-08,67792.0,67791.0,1.04243142]
[1730063175975,1e-08,67792.0,67791.0,0.94663142]
[1730063176400,1e-08,67792.0,67791.0,0.85426275]
[1730063176621,1e-08,67792.0,67791.0,0.94663142]
[1730063178835,1e-08,67792.0,67791.0,1.07941909]
[1730063179043,1e-08,67792.0,67791.0,0.78324033]
[1730063179464,1e-08,67792.0,67791.0,1.0795658]
[1730063179850,1e-08,67792.0,67791.0,0.78324033]
[1730063182228,1e-08,67792.0,67791.0,1.07962147]
[1730063187493,1e-08,67792.0,67791.0,1.07964333]
[1730063190371,1e-08,67792.0,67791.0,0.94675512]
[1730063192958,1e-08,67792.0,67791.0,0.94676125]
[1730063195547,1e-08,67792.0,67791.0,1.07965444]
[1730063196048,1e-08,67792.0,67791.0,1.17055444]
[1730063197474,1e-08,67792.0,67791.0,1.44142692]
[1730063197713,1e-08,67792.0,67791.0,1.31053373]
[1730063197961,1e-08,67792.0,67791.0,1.53946302]
[1730063198440,1e-08,67792.0,67791.0,1.31053373]
[1730063199152,1e-08,67792.0,67791.0,1.32053373]
[1730063199413,1e-08,67792.0,67791.0,1.54946302]
[1730063199656,0.0490203,67810.0,67809.0,0.09236867]
[1730063199865,0.0490203,67810.0,67809.0,0.28412324]
[1730063200091,0.1966,67816.0,67809.0,0.10979741]
[1730063200336,0.147466,67812.0,67810.0,0.04426077]
[1730063200547,0.391516,67816.0,67811.0,0.28409744]
[1730063200766,0.0966,67816.0,67815.0,0.09236867]
[1730063201253,0.244057,67816.0,67815.0,0.10978459]
[1730063201472,0.294903,67819.0,67815.0,0.25724359]
[1730063201473,0.147454,67818.0,67815.0,0.25724359]
[1730063201689,0.147456,67817.0,67815.0,0.01741592]
[1730063201935,0.147456,67817.0,67816.0,0.09236867]
[1730063202360,0.147456,67817.0,67816.0,0.10978246]
[1730063213151,0.1491,67817.0,67816.0,0.10978246]
[1730063216017,0.2406,67817.0,67816.0,0.01741379]
[1730063216234,0.147462,67814.0,67813.0,0.22141365]
[1730063216471,0.238962,67814.0,67813.0,0.22141365]
[1730063216944,0.0915,67814.0,67807.0,0.09236867]
[1730063217206,0.147468,67811.0,67810.0,0.22141365]
[1730063217433,0.294933,67812.0,67807.0,0.23984567]
[1730063217648,0.147471,67810.0,67807.0,0.09236867]
[1730063217896,0.147474,67809.0,67807.0,0.09236867]
[1730063218860,0.14747,67811.0,67807.0,0.23984467]
[1730063219807,0.294933,67812.0,67807.0,0.09236867]
[1730063220024,0.147472,67810.0,67807.0,0.09236867]
[1730063220968,0.294928,67813.0,67807.0,0.09236867]
[1730063221212,0.147475,67808.0,67807.0,0.09236867]
[1730063226880,0.147475,67808.0,67807.0,0.1080432]
[1730063247818,0.149119,67808.0,67807.0,0.1080432]
[1730063254768,0.149119,67808.0,67807.0,0.33776331]
[1730063257087,0.149119,67808.0,67807.0,0.33778958]
[1730063257306,0.149119,67808.0,67807.0,0.27140688]
[1730063259323,0.149119,67808.0,67807.0,0.35991715]
[1730063260644,0.149119,67808.0,67807.0,0.26754848]
[1730063261286,0.149119,67808.0,67807.0,0.17903821]
[1730063262240,0.149119,67808.0,67807.0,0.28967605]
[1730063265973,0.001644,67808.0,67807.0,0.28967605]
[1730063266844,0.149119,67808.0,67807.0,0.28967605]
[1730063271847,0.149119,67808.0,67807.0,0.28991796]
[1730063276115,0.149119,67808.0,67807.0,0.17918244]
[1730063276477,0.149119,67808.0,67807.0,0.28991788]
[1730063276695,0.149119,67808.0,67807.0,0.28991777]
[1730063280935,0.149119,67808.0,67807.0,0.28992202]
[1730063285930,0.001644,67808.0,67807.0,0.28992202]
[1730063289817,0.001644,67808.0,67807.0,0.28992235]
[1730063290025,0.149119,67808.0,67807.0,0.28992235]
[1730063296116,0.149119,67808.0,67807.0,0.01567453]
[1730063296117,0.240319,67808.0,67807.0,0.01567453]
[1730063296388,0.240319,67808.0,67800.0,0.11073729]
[1730063296389,0.32194781,67808.0,67797.0,0.04429821]
[1730063296600,0.32194781,67808.0,67796.0,0.06644449]
[1730063296601,0.238699,67797.0,67796.0,0.04429821]
[1730063296838,0.238699,67797.0,67794.0,0.26571186]
[1730063296839,0.0912,67797.0,67794.0,0.26571186]
[1730063297052,0.147503,67795.0,67794.0,0.26571186]
[1730063297265,0.147503,67795.0,67794.0,0.22141365]
[1730063297491,0.386199,67797.0,67792.0,0.000822]
[1730063297715,0.147507,67793.0,67792.0,0.000822]
[1730063301714,0.147507,67793.0,67792.0,0.01976492]
[1730063312302,0.23987567,67793.0,67792.0,0.01976492]
[1730063312537,0.56067948,67793.0,67792.0,0.01976492]
[1730063320390,0.56067948,67793.0,67792.0,0.000822]
[1730063320739,0.56232348,67793.0,67792.0,0.000822]
[1730063338772,0.66232348,67793.0,67792.0,0.000822]
[1730063349492,0.66232348,67793.0,67791.0,0.000822]
[1730063349493,0.26251,67792.0,67791.0,0.000822]
[1730063349704,0.50331381,67792.0,67791.0,1e-06]
[1730063349916,0.59144256,67792.0,67791.0,1e-06]
[1730063350181,0.61347475,67792.0,67791.0,1e-06]
[1730063353210,0.50331381,67792.0,67791.0,1e-06]
[1730063354326,0.65381762,67792.0,67791.0,1e-06]
[1730063356720,0.67692361,67792.0,67791.0,1e-06]
[1730063361178,0.67892361,67792.0,67791.0,1e-06]
[1730063362873,0.67692361,67792.0,67791.0,1e-06]
[1730063365050,0.23989167,67786.0,67785.0,0.000822]
[1730063365295,0.55651549,67786.0,67785.0,0.000822]
[1730063366471,0.46414682,67786.0,67785.0,0.000822]
[1730063366690,0.49039548,67786.0,67785.0,0.000822]
[1730063366949,0.55651549,67786.0,67785.0,0.000822]
[1730063368380,0.49039548,67786.0,67785.0,0.000822]
[1730063368865,0.55651549,67786.0,67785.0,0.000822]
[1730063369086,0.6161667,67786.0,67785.0,0.000822]
[1730063369306,0.7128667,67786.0,67785.0,0.000822]
[1730063369576,0.73043708,67786.0,67785.0,0.000822]
[1730063370271,0.66431707,67786.0,67785.0,0.000822]
[1730063370504,0.73042897,67786.0,67785.0,0.000822]
[1730063370748,0.66431707,67786.0,67785.0,0.000822]
[1730063371206,0.73042921,67786.0,67785.0,0.000822]
[1730063371421,0.63806054,67786.0,67785.0,0.000822]
[1730063371630,0.63806024,67786.0,67785.0,0.000822]
[1730063371843,0.73042886,67786.0,67785.0,0.000822]
[1730063372691,0.73042984,67786.0,67785.0,0.000822]
[1730063373420,0.66431707,67786.0,67785.0,0.000822]
[1730063373636,0.73043314,67786.0,67785.0,0.000822]
[1730063374074,0.67078193,67786.0,67785.0,0.000822]
[1730063374311,0.60466586,67786.0,67785.0,0.000822]
[1730063374536,0.67078459,67786.0,67785.0,0.000822]
[1730063374747,0.60466586,67786.0,67785.0,0.000822]
[1730063374994,0.67078454,67786.0,67785.0,0.000822]
[1730063375447,0.6707875,67786.0,67785.0,0.000822]
[1730063375865,0.67078718,67786.0,67785.0,0.000822]
[1730063376303,0.67078992,67786.0,67785.0,0.000822]
[1730063376736,0.60466586,67786.0,67785.0,0.000822]
[1730063377199,0.69281498,67786.0,67785.0,0.000822]
[1730063377406,0.60466586,67786.0,67785.0,0.000822]
[1730063377860,0.7362075,67786.0,67785.0,0.000822]
[1730063378075,0.23991267,67776.0,67775.0,0.077022]
[1730063378288,0.49041648,67776.0,67775.0,0.077022]
[1730063378506,0.49041648,67776.0,67775.0,0.01754522]
[1730063378739,0.49041648,67776.0,67775.0,0.000822]
[1730063378989,0.58278515,67776.0,67775.0,0.000822]
[1730063379221,0.6539096,67776.0,67775.0,0.000822]
[1730063379682,0.65389808,67776.0,67775.0,0.000822]
[1730063379939,0.67595109,67776.0,67775.0,0.000822]
[1730063380163,0.67595109,67776.0,67775.0,1e-06]
[1730063380392,0.68558515,67776.0,67775.0,1e-06]
[1730063380603,0.77375109,67776.0,67775.0,1e-06]
[1730063380827,0.77372357,67776.0,67775.0,1e-06]
[1730063381090,0.77372343,67776.0,67775.0,1e-06]
[1730063381305,0.79135207,67776.0,67775.0,1e-06]
[1730063383486,0.70322455,67776.0,67775.0,1e-06]
[1730063385181,0.79135207,67776.0,67775.0,1e-06]
[1730063385387,0.70322455,67776.0,67775.0,1e-06]
[1730063385826,0.76930207,67776.0,67775.0,1e-06]
[1730063386039,0.70322455,67776.0,67775.0,1e-06]
[1730063386252,0.76930205,67776.0,67775.0,1e-06]
[1730063386678,0.70322455,67776.0,67775.0,1e-06]
[1730063387323,0.76929524,67776.0,67775.0,1e-06]
[1730063388227,0.76929042,67776.0,67775.0,1e-06]
[1730063388919,0.70322455,67776.0,67775.0,1e-06]
[1730063388922,0.76929043,67776.0,67775.0,1e-06]
[1730063389150,0.76929055,67776.0,67775.0,1e-06]
[1730063390072,0.76929048,67776.0,67775.0,1e-06]
[1730063390721,0.76928977,67776.0,67775.0,1e-06]
[1730063390930,0.91979358,67776.0,67775.0,1e-06]
[1730063391351,0.76928977,67776.0,67775.0,1e-06]
[1730063392646,0.76929562,67776.0,67775.0,1e-06]
[1730063393031,0.70322455,67776.0,67775.0,1e-06]
[1730063393258,0.76929573,67776.0,67775.0,1e-06]
[1730063393468,0.7692984,67776.0,67775.0,1e-06]
[1730063393888,0.70322455,67776.0,67775.0,1e-06]
[1730063394097,0.71322455,67776.0,67775.0,1e-06]
[1730063395296,0.86689597,67776.0,67775.0,1e-06]
[1730063395518,0.86691673,67776.0,67775.0,1e-06]
[1730063397095,0.77880901,67776.0,67775.0,1e-06]
[1730063397324,0.86691673,67776.0,67775.0,1e-06]
[1730063398692,0.86891673,67776.0,67775.0,1e-06]
[1730063398908,0.86691673,67776.0,67775.0,1e-06]
[1730063399990,0.80133227,67776.0,67775.0,1e-06]
[1730063400195,0.80132677,67776.0,67775.0,1e-06]
[1730063400661,0.71322455,67776.0,67775.0,1e-06]
[1730063400907,0.80132677,67776.0,67775.0,1e-06]